[Event "Titled Tuesday Blitz July 4 Late 2023"]
[White "Sjugirov, Sanan"]
[Black "Ozer, Omer Faruk"]
[WhiteFideId "4189302"]
[BlackFideId "6354564"]
[WhiteElo "2961"]
[BlackElo "2757"]
[Result "1-0"]
[Round "7"]
[TimeControl "180+2"]
[Date "2023.07.04"]
[WhiteClock "0:00:27"]
[BlackClock "0:00:34"]
[Board "19"]

1. e4 {[%clk 0:03:00]}  e5 {[%clk 0:02:57]} 2. Nf3 {[%clk 0:03:00]}  Nc6 {[%clk 0:02:57]} 3. Bc4 {[%clk 0:03:01]}  Nf6 {[%clk 0:02:57]} 4. d3 {[%clk 0:03:01]}  h6 {[%clk 0:02:57]} 5. a4 {[%clk 0:03:01]}  d6 {[%clk 0:02:57]} 6. a5 {[%clk 0:03:01]}  a6 {[%clk 0:02:57]} 7. Nc3 {[%clk 0:03:01]}  g6 {[%clk 0:02:55]} 8. h3 {[%clk 0:03:00]}  Bg7 {[%clk 0:02:56]} 9. O-O {[%clk 0:03:00]}  O-O {[%clk 0:02:55]} 10. Be3 {[%clk 0:03:01]}  Kh7 {[%clk 0:02:52]} 11. Re1 {[%clk 0:03:01]}  Be6 {[%clk 0:02:49]} 12. Qd2 {[%clk 0:02:38]}  Qd7 {[%clk 0:02:36]} 13. Bxe6 {[%clk 0:02:23]}  fxe6 {[%clk 0:02:34]} 14. d4 {[%clk 0:02:23]}  exd4 {[%clk 0:02:31]} 15. Nxd4 {[%clk 0:02:24]}  Nxd4 {[%clk 0:02:19]} 16. Bxd4 {[%clk 0:02:25]}  Nh5 {[%clk 0:02:18]} 17. Bxg7 {[%clk 0:02:07]}  Qxg7 {[%clk 0:02:19]} 18. Ra3 {[%clk 0:01:54]}  Rf7 {[%clk 0:02:14]} 19. Rb3 {[%clk 0:01:51]}  Raf8 {[%clk 0:01:59]} 20. f3 {[%clk 0:01:40]}  Rb8 {[%clk 0:01:50]} 21. Ne2 {[%clk 0:01:34]}  Qe5 {[%clk 0:01:49]} 22. Qc3 {[%clk 0:01:28]}  Qg5 {[%clk 0:01:46]} 23. Rf1 {[%clk 0:01:08]}  e5 {[%clk 0:01:38]} 24. Qe3 {[%clk 0:01:01]}  Qxe3+ {[%clk 0:01:30]} 25. Rxe3 {[%clk 0:01:01]}  Ng7 {[%clk 0:01:24]} 26. Rb3 {[%clk 0:00:53]}  Ne6 {[%clk 0:01:24]} 27. Rd1 {[%clk 0:00:53]}  Kg7 {[%clk 0:01:22]} 28. c3 {[%clk 0:00:41]}  Kf8 {[%clk 0:01:18]} 29. Ng3 {[%clk 0:00:30]}  Ke7 {[%clk 0:01:13]} 30. Nf1 {[%clk 0:00:30]}  Kd7 {[%clk 0:00:57]} 31. Ne3 {[%clk 0:00:30]}  Nf4 {[%clk 0:00:41]} 32. Ng4 {[%clk 0:00:27]}  h5 {[%clk 0:00:34]} 33. Nxe5+ {[%clk 0:00:27]} 1-0


[Site "https://www.chess.com"]

[Event "Titled Tuesday Blitz July 4 Late 2023"]
[White "Mahdavi, Reza"]
[Black "Xiong, Jeffery"]
[WhiteFideId "12595926"]
[BlackFideId "2047640"]
[WhiteElo "2751"]
[BlackElo "2942"]
[Result "0-1"]
[Round "7"]
[TimeControl "180+2"]
[Date "2023.07.04"]
[WhiteClock "0:00:21"]
[BlackClock "0:01:07"]
[Board "20"]

1. e4 {[%clk 0:02:54]}  c6 {[%clk 0:02:58]} 2. d4 {[%clk 0:02:53]}  d5 {[%clk 0:02:59]} 3. e5 {[%clk 0:02:54]}  Bf5 {[%clk 0:02:58]} 4. Nf3 {[%clk 0:02:54]}  e6 {[%clk 0:02:59]} 5. Be2 {[%clk 0:02:55]}  Ne7 {[%clk 0:03:00]} 6. O-O {[%clk 0:02:56]}  h6 {[%clk 0:03:00]} 7. a4 {[%clk 0:02:56]}  Nd7 {[%clk 0:03:00]} 8. a5 {[%clk 0:02:55]}  Bh7 {[%clk 0:02:57]} 9. b3 {[%clk 0:02:52]}  Ng6 {[%clk 0:02:42]} 10. c4 {[%clk 0:02:49]}  Be7 {[%clk 0:02:42]} 11. Nc3 {[%clk 0:02:49]}  O-O {[%clk 0:02:42]} 12. cxd5 {[%clk 0:02:45]}  cxd5 {[%clk 0:02:43]} 13. a6 {[%clk 0:02:45]}  bxa6 {[%clk 0:02:32]} 14. Rxa6 {[%clk 0:02:44]}  Nb8 {[%clk 0:02:23]} 15. Ra4 {[%clk 0:02:42]}  Nc6 {[%clk 0:02:16]} 16. Be3 {[%clk 0:02:43]}  a5 {[%clk 0:02:15]} 17. Qd2 {[%clk 0:02:36]}  f6 {[%clk 0:02:11]} 18. exf6 {[%clk 0:02:36]}  Bxf6 {[%clk 0:02:12]} 19. Re1 {[%clk 0:02:32]}  Nge7 {[%clk 0:02:08]} 20. Bb5 {[%clk 0:02:29]}  Bf5 {[%clk 0:02:05]} 21. Bf4 {[%clk 0:02:13]}  Nb4 {[%clk 0:02:03]} 22. Ne5 {[%clk 0:02:09]}  Bxe5 {[%clk 0:01:59]} 23. Bxe5 {[%clk 0:02:09]}  Qb6 {[%clk 0:01:59]} 24. Bf1 {[%clk 0:02:03]}  Rfc8 {[%clk 0:01:59]} 25. Nb5 {[%clk 0:01:59]}  Rc2 {[%clk 0:01:58]} 26. Qe3 {[%clk 0:01:59]}  Nec6 {[%clk 0:01:55]} 27. Bd6 {[%clk 0:01:54]}  Qd8 {[%clk 0:01:53]} 28. Qg3 {[%clk 0:01:51]}  Qg5 {[%clk 0:01:50]} 29. Qxg5 {[%clk 0:01:14]}  hxg5 {[%clk 0:01:51]} 30. Bc5 {[%clk 0:01:12]}  Rb2 {[%clk 0:01:47]} 31. Re3 {[%clk 0:01:06]}  Rb1 {[%clk 0:01:45]} 32. Nc3 {[%clk 0:00:57]}  Rc1 {[%clk 0:01:42]} 33. Ne2 {[%clk 0:00:56]}  Rd1 {[%clk 0:01:33]} 34. Nc3 {[%clk 0:00:56]}  Rc1 {[%clk 0:01:33]} 35. Ne2 {[%clk 0:00:56]}  Rb1 {[%clk 0:01:34]} 36. Nc3 {[%clk 0:00:56]}  Rb2 {[%clk 0:01:34]} 37. h3 {[%clk 0:00:51]}  Nc2 {[%clk 0:01:32]} 38. Rg3 {[%clk 0:00:46]}  Rxb3 {[%clk 0:01:31]} 39. Bb5 {[%clk 0:00:39]}  N6b4 {[%clk 0:01:29]} 40. Nxd5 {[%clk 0:00:36]}  Rb1+ {[%clk 0:01:26]} 41. Kh2 {[%clk 0:00:37]}  Nxd5 {[%clk 0:01:26]} 42. Bc6 {[%clk 0:00:35]}  Ra6 {[%clk 0:01:10]} 43. Bxd5 {[%clk 0:00:32]}  exd5 {[%clk 0:01:11]} 44. Rxg5 {[%clk 0:00:33]}  g6 {[%clk 0:01:07]} 45. Rg3 {[%clk 0:00:30]}  Rb2 {[%clk 0:01:07]} 46. Rc3 {[%clk 0:00:21]}  Bd7 {[%clk 0:01:07]} 0-1


[Site "https://www.chess.com"]

[Event "Titled Tuesday Blitz July 4 Late 2023"]
[White "Papasimakopoulos, Alexandros"]
[Black "Ibrahimli, Murad"]
[WhiteFideId "4244125"]
[BlackFideId "13410229"]
[WhiteElo "2687"]
[BlackElo "2923"]
[Result "0-1"]
[Round "7"]
[TimeControl "180+2"]
[Date "2023.07.04"]
[WhiteClock "0:00:50"]
[BlackClock "0:00:53"]
[Board "22"]

1. d4 {[%clk 0:03:00]}  Nf6 {[%clk 0:02:58]} 2. c4 {[%clk 0:03:01]}  g6 {[%clk 0:02:58]} 3. Nc3 {[%clk 0:03:01]}  Bg7 {[%clk 0:02:59]} 4. Bg5 {[%clk 0:02:57]}  d6 {[%clk 0:02:54]} 5. e3 {[%clk 0:02:57]}  O-O {[%clk 0:02:53]} 6. Nf3 {[%clk 0:02:57]}  c5 {[%clk 0:02:54]} 7. Be2 {[%clk 0:02:56]}  cxd4 {[%clk 0:02:52]} 8. Nxd4 {[%clk 0:02:57]}  Nc6 {[%clk 0:02:51]} 9. O-O {[%clk 0:02:56]}  Bd7 {[%clk 0:02:51]} 10. Rc1 {[%clk 0:02:54]}  Rc8 {[%clk 0:02:49]} 11. b3 {[%clk 0:02:53]}  a6 {[%clk 0:02:49]} 12. Bf3 {[%clk 0:02:51]}  Re8 {[%clk 0:02:47]} 13. Qd2 {[%clk 0:02:45]}  h6 {[%clk 0:02:40]} 14. Bh4 {[%clk 0:02:44]}  Qa5 {[%clk 0:02:39]} 15. Rfd1 {[%clk 0:02:43]}  g5 {[%clk 0:02:37]} 16. Bg3 {[%clk 0:02:43]}  Nxd4 {[%clk 0:02:23]} 17. exd4 {[%clk 0:02:42]}  b5 {[%clk 0:02:24]} 18. cxb5 {[%clk 0:02:24]}  axb5 {[%clk 0:02:24]} 19. h4 {[%clk 0:02:13]}  g4 {[%clk 0:02:20]} 20. Be2 {[%clk 0:02:10]}  b4 {[%clk 0:02:18]} 21. Na4 {[%clk 0:02:06]}  Ne4 {[%clk 0:02:18]} 22. Qe3 {[%clk 0:02:04]}  Nxg3 {[%clk 0:02:17]} 23. Qxg3 {[%clk 0:02:04]}  h5 {[%clk 0:02:15]} 24. Qe3 {[%clk 0:01:48]}  e6 {[%clk 0:02:01]} 25. Rxc8 {[%clk 0:01:40]}  Rxc8 {[%clk 0:02:02]} 26. d5 {[%clk 0:01:40]}  Re8 {[%clk 0:01:28]} 27. dxe6 {[%clk 0:01:34]}  Rxe6 {[%clk 0:01:28]} 28. Qb6 {[%clk 0:01:26]}  Qxb6 {[%clk 0:01:04]} 29. Nxb6 {[%clk 0:01:26]}  Rxe2 {[%clk 0:01:05]} 30. Nxd7 {[%clk 0:01:26]}  Rxa2 {[%clk 0:01:05]} 31. Rxd6 {[%clk 0:01:25]}  Rb2 {[%clk 0:01:06]} 32. Rd3 {[%clk 0:01:09]}  Bc3 {[%clk 0:01:04]} 33. Rd5 {[%clk 0:01:07]}  Rxb3 {[%clk 0:01:02]} 34. Rxh5 {[%clk 0:01:08]}  Rb1+ {[%clk 0:00:58]} 35. Kh2 {[%clk 0:01:08]}  b3 {[%clk 0:00:58]} 36. Rb5 {[%clk 0:01:08]}  b2 {[%clk 0:00:58]} 37. h5 {[%clk 0:01:00]}  Rd1 {[%clk 0:00:56]} 38. Rg5+ {[%clk 0:00:52]}  Kh8 {[%clk 0:00:54]} 39. Nf6 {[%clk 0:00:50]}  Bxf6 {[%clk 0:00:53]} 0-1


[Site "https://www.chess.com"]

[Event "Titled Tuesday Blitz July 4 Late 2023"]
[White "Toolin, Christopher"]
[Black "Sanal, Vahap"]
[WhiteFideId "2024543"]
[BlackFideId "6300545"]
[WhiteElo "2430"]
[BlackElo "2892"]
[Result "0-1"]
[Round "7"]
[TimeControl "180+2"]
[Date "2023.07.04"]
[WhiteClock "0:00:00"]
[BlackClock "0:00:56"]
[Board "24"]

1. d4 {[%clk 0:02:59]}  d6 {[%clk 0:02:53]} 2. c4 {[%clk 0:02:56]}  e5 {[%clk 0:02:52]} 3. Nf3 {[%clk 0:02:53]}  e4 {[%clk 0:02:51]} 4. Nfd2 {[%clk 0:02:48]}  f5 {[%clk 0:02:52]} 5. e3 {[%clk 0:02:48]}  Nf6 {[%clk 0:02:52]} 6. b3 {[%clk 0:02:42]}  Be7 {[%clk 0:02:51]} 7. Bb2 {[%clk 0:02:42]}  O-O {[%clk 0:02:52]} 8. Nc3 {[%clk 0:02:39]}  c5 {[%clk 0:02:52]} 9. d5 {[%clk 0:02:37]}  Nbd7 {[%clk 0:02:52]} 10. f4 {[%clk 0:02:34]}  a6 {[%clk 0:02:34]} 11. Be2 {[%clk 0:02:29]}  b5 {[%clk 0:02:34]} 12. cxb5 {[%clk 0:02:24]}  axb5 {[%clk 0:02:30]} 13. Bxb5 {[%clk 0:02:25]}  Ng4 {[%clk 0:02:22]} 14. Qe2 {[%clk 0:02:21]}  Bf6 {[%clk 0:02:22]} 15. h3 {[%clk 0:02:18]}  Bh4+ {[%clk 0:02:21]} 16. Kf1 {[%clk 0:02:11]}  Nf2 {[%clk 0:02:20]} 17. Rg1 {[%clk 0:02:04]}  Bg3 {[%clk 0:02:20]} 18. Nc4 {[%clk 0:01:47]}  Nf6 {[%clk 0:02:00]} 19. Bc6 {[%clk 0:01:47]}  Rb8 {[%clk 0:01:58]} 20. Nd1 {[%clk 0:01:36]}  Nd3 {[%clk 0:01:51]} 21. Bc3 {[%clk 0:01:24]}  Ba6 {[%clk 0:01:50]} 22. Ndb2 {[%clk 0:01:17]}  Nxb2 {[%clk 0:01:46]} 23. Bxb2 {[%clk 0:01:13]}  Qc7 {[%clk 0:01:46]} 24. Bc3 {[%clk 0:00:59]}  Qf7 {[%clk 0:01:45]} 25. Rd1 {[%clk 0:00:57]}  Nh5 {[%clk 0:01:40]} 26. Be1 {[%clk 0:00:42]}  Qg6 {[%clk 0:01:36]} 27. Bd7 {[%clk 0:00:29]}  Kh8 {[%clk 0:01:32]} 28. Be6 {[%clk 0:00:29]}  Ra8 {[%clk 0:01:18]} 29. Qb2 {[%clk 0:00:21]}  Rfb8 {[%clk 0:01:16]} 30. Qc2 {[%clk 0:00:17]}  Qf6 {[%clk 0:01:10]} 31. Bxg3 {[%clk 0:00:15]}  Nxg3+ {[%clk 0:01:10]} 32. Kf2 {[%clk 0:00:14]}  Qh4 {[%clk 0:01:10]} 33. Ke1 {[%clk 0:00:12]}  Bxc4 {[%clk 0:01:08]} 34. bxc4 {[%clk 0:00:08]}  Ra3 {[%clk 0:01:08]} 35. Kd2 {[%clk 0:00:05]}  Nh1 {[%clk 0:01:03]} 36. Rxh1 {[%clk 0:00:03]}  Qf2+ {[%clk 0:01:03]} 37. Kc1 {[%clk 0:00:03]}  Qxe3+ {[%clk 0:01:04]} 38. Rd2 {[%clk 0:00:03]}  Rc3 {[%clk 0:01:05]} 39. Rd1 {[%clk 0:00:02]}  Rxc2+ {[%clk 0:01:03]} 40. Kxc2 {[%clk 0:00:03]}  Qa3 {[%clk 0:01:03]} 41. Rc1 {[%clk 0:00:02]}  e3 {[%clk 0:00:58]} 42. Kd1 {[%clk 0:00:03]}  exd2 {[%clk 0:00:57]} 43. Kxd2 {[%clk 0:00:04]}  Rb2+ {[%clk 0:00:56]} 44. Kd1 {[%clk 0:00:00]}  Qd3+ {[%clk 0:00:56]} 0-1


[Site "https://www.chess.com"]

[Event "Titled Tuesday Blitz July 4 Late 2023"]
[White "Tahbaz, Arash"]
[Black "Philippe, Guillaume"]
[WhiteFideId "12528846"]
[BlackFideId "36048763"]
[WhiteElo "2983"]
[BlackElo "2470"]
[Result "0-1"]
[Round "7"]
[TimeControl "180+2"]
[Date "2023.07.04"]
[WhiteClock "0:00:33"]
[BlackClock "0:00:19"]
[Board "25"]

1. Nf3 {[%clk 0:02:55]}  Nf6 {[%clk 0:02:59]} 2. g3 {[%clk 0:02:56]}  d5 {[%clk 0:02:56]} 3. Bg2 {[%clk 0:02:57]}  e6 {[%clk 0:02:56]} 4. O-O {[%clk 0:02:58]}  Be7 {[%clk 0:02:55]} 5. d3 {[%clk 0:02:59]}  O-O {[%clk 0:02:56]} 6. Nbd2 {[%clk 0:03:00]}  b6 {[%clk 0:02:54]} 7. e4 {[%clk 0:03:01]}  Bb7 {[%clk 0:02:55]} 8. e5 {[%clk 0:03:01]}  Nfd7 {[%clk 0:02:54]} 9. Re1 {[%clk 0:03:02]}  c5 {[%clk 0:02:55]} 10. Nf1 {[%clk 0:03:02]}  d4 {[%clk 0:02:51]} 11. h4 {[%clk 0:03:02]}  h6 {[%clk 0:02:49]} 12. Bf4 {[%clk 0:03:03]}  Re8 {[%clk 0:02:47]} 13. Qd2 {[%clk 0:03:02]}  Bf8 {[%clk 0:02:47]} 14. g4 {[%clk 0:03:03]}  Nc6 {[%clk 0:02:45]} 15. Ng3 {[%clk 0:03:02]}  Nb4 {[%clk 0:02:44]} 16. g5 {[%clk 0:03:01]}  hxg5 {[%clk 0:02:41]} 17. Bxg5 {[%clk 0:03:02]}  Qc7 {[%clk 0:02:40]} 18. a3 {[%clk 0:02:52]}  Nd5 {[%clk 0:02:39]} 19. h5 {[%clk 0:02:50]}  Ne7 {[%clk 0:02:34]} 20. h6 {[%clk 0:02:40]}  Ng6 {[%clk 0:02:32]} 21. Nh5 {[%clk 0:02:31]}  Bxf3 {[%clk 0:02:08]} 22. Bxf3 {[%clk 0:02:31]}  Ndxe5 {[%clk 0:02:09]} 23. Bg2 {[%clk 0:02:11]}  Rac8 {[%clk 0:01:19]} 24. hxg7 {[%clk 0:02:07]}  Bxg7 {[%clk 0:01:20]} 25. Bf6 {[%clk 0:01:58]}  Ng4 {[%clk 0:00:45]} 26. Qg5 {[%clk 0:01:51]}  Qh2+ {[%clk 0:00:31]} 27. Kf1 {[%clk 0:01:51]}  Nxf6 {[%clk 0:00:32]} 28. Nxf6+ {[%clk 0:01:51]}  Bxf6 {[%clk 0:00:32]} 29. Qxf6 {[%clk 0:01:52]}  Qf4 {[%clk 0:00:32]} 30. Qxf4 {[%clk 0:01:42]}  Nxf4 {[%clk 0:00:33]} 31. a4 {[%clk 0:01:42]}  a5 {[%clk 0:00:31]} 32. Ra3 {[%clk 0:01:41]}  Nxg2 {[%clk 0:00:31]} 33. Kxg2 {[%clk 0:01:42]}  Kf8 {[%clk 0:00:31]} 34. Rb3 {[%clk 0:01:42]}  Rc6 {[%clk 0:00:31]} 35. f4 {[%clk 0:01:42]}  Ke7 {[%clk 0:00:31]} 36. Kf3 {[%clk 0:01:40]}  Rh8 {[%clk 0:00:30]} 37. c3 {[%clk 0:01:25]}  dxc3 {[%clk 0:00:28]} 38. bxc3 {[%clk 0:01:24]}  Kd7 {[%clk 0:00:27]} 39. Rg1 {[%clk 0:01:21]}  Rh3+ {[%clk 0:00:25]} 40. Ke2 {[%clk 0:01:19]}  Rh2+ {[%clk 0:00:25]} 41. Ke3 {[%clk 0:01:19]}  Ra2 {[%clk 0:00:26]} 42. Rg7 {[%clk 0:01:17]}  Ke7 {[%clk 0:00:26]} 43. Rg8 {[%clk 0:01:13]}  Rxa4 {[%clk 0:00:26]} 44. Rb8 {[%clk 0:01:13]}  c4 {[%clk 0:00:24]} 45. R3xb6 {[%clk 0:01:10]}  Rxb6 {[%clk 0:00:24]} 46. Rxb6 {[%clk 0:01:10]}  cxd3 {[%clk 0:00:25]} 47. Ra6 {[%clk 0:01:08]}  d2 {[%clk 0:00:20]} 48. Kxd2 {[%clk 0:01:09]}  Rxf4 {[%clk 0:00:21]} 49. Rxa5 {[%clk 0:01:09]}  Rc4 {[%clk 0:00:21]} 50. Kd3 {[%clk 0:01:09]}  Rc8 {[%clk 0:00:21]} 51. c4 {[%clk 0:01:10]}  Kf6 {[%clk 0:00:22]} 52. c5 {[%clk 0:01:10]}  Ke5 {[%clk 0:00:22]} 53. Kc4 {[%clk 0:01:11]}  f5 {[%clk 0:00:23]} 54. Ra1 {[%clk 0:01:04]}  f4 {[%clk 0:00:23]} 55. Re1+ {[%clk 0:01:04]}  Kf5 {[%clk 0:00:23]} 56. Kd4 {[%clk 0:01:03]}  Rd8+ {[%clk 0:00:23]} 57. Kc4 {[%clk 0:01:03]}  e5 {[%clk 0:00:23]} 58. c6 {[%clk 0:01:03]}  e4 {[%clk 0:00:24]} 59. Kc5 {[%clk 0:00:56]}  e3 {[%clk 0:00:24]} 60. Rb1 {[%clk 0:00:42]}  f3 {[%clk 0:00:21]} 61. Rb7 {[%clk 0:00:41]}  e2 {[%clk 0:00:20]} 62. Re7 {[%clk 0:00:33]}  f2 {[%clk 0:00:19]} 0-1


[Site "https://www.chess.com"]

[Event "Titled Tuesday Blitz July 4 Late 2023"]
[White "Chigaev, Maksim"]
[Black "Ovchinnikov, Vsevolod"]
[WhiteFideId "4108116"]
[BlackFideId "24176842"]
[WhiteElo "2931"]
[BlackElo "2584"]
[Result "1-0"]
[Round "7"]
[TimeControl "180+2"]
[Date "2023.07.04"]
[WhiteClock "0:00:22"]
[BlackClock "0:00:03"]
[Board "29"]

1. e4 {[%clk 0:03:00]}  g6 {[%clk 0:02:59]} 2. d4 {[%clk 0:03:00]}  Bg7 {[%clk 0:02:59]} 3. Nc3 {[%clk 0:03:01]}  a6 {[%clk 0:03:00]} 4. Be3 {[%clk 0:02:59]}  b5 {[%clk 0:03:00]} 5. f3 {[%clk 0:02:59]}  d6 {[%clk 0:03:00]} 6. h4 {[%clk 0:03:00]}  h5 {[%clk 0:02:59]} 7. Qd2 {[%clk 0:03:01]}  Nd7 {[%clk 0:02:59]} 8. O-O-O {[%clk 0:03:01]}  Bb7 {[%clk 0:03:00]} 9. Nh3 {[%clk 0:03:01]}  Rc8 {[%clk 0:03:01]} 10. Ng5 {[%clk 0:03:02]}  c5 {[%clk 0:03:02]} 11. Kb1 {[%clk 0:03:02]}  cxd4 {[%clk 0:02:59]} 12. Bxd4 {[%clk 0:03:02]}  Bxd4 {[%clk 0:03:00]} 13. Qxd4 {[%clk 0:03:02]}  Ngf6 {[%clk 0:03:01]} 14. a4 {[%clk 0:03:00]}  bxa4 {[%clk 0:02:58]} 15. Bc4 {[%clk 0:02:54]}  O-O {[%clk 0:02:34]} 16. Nxa4 {[%clk 0:02:53]}  Qa5 {[%clk 0:02:12]} 17. Bb3 {[%clk 0:02:43]}  Qe5 {[%clk 0:02:02]} 18. Qxe5 {[%clk 0:02:30]}  Nxe5 {[%clk 0:02:03]} 19. Rhe1 {[%clk 0:02:30]}  Ned7 {[%clk 0:01:25]} 20. f4 {[%clk 0:02:10]}  Nc5 {[%clk 0:01:25]} 21. Nxc5 {[%clk 0:02:06]}  Rxc5 {[%clk 0:01:26]} 22. e5 {[%clk 0:02:04]}  dxe5 {[%clk 0:01:26]} 23. fxe5 {[%clk 0:01:45]}  Nd5 {[%clk 0:00:41]} 24. g3 {[%clk 0:01:34]}  e6 {[%clk 0:00:13]} 25. Ne4 {[%clk 0:01:31]}  Ra5 {[%clk 0:00:13]} 26. Rd4 {[%clk 0:01:18]}  Kg7 {[%clk 0:00:09]} 27. Ng5 {[%clk 0:01:13]}  Bc6 {[%clk 0:00:08]} 28. Rf1 {[%clk 0:01:13]}  Rc5 {[%clk 0:00:07]} 29. Rd2 {[%clk 0:01:06]}  Be8 {[%clk 0:00:06]} 30. Rdf2 {[%clk 0:01:01]}  Nc7 {[%clk 0:00:06]} 31. Re1 {[%clk 0:00:55]}  Bb5 {[%clk 0:00:05]} 32. Rd2 {[%clk 0:00:52]}  Bc4 {[%clk 0:00:04]} 33. Bxc4 {[%clk 0:00:48]}  Rxc4 {[%clk 0:00:05]} 34. Rd7 {[%clk 0:00:48]}  Kg8 {[%clk 0:00:05]} 35. Rf1 {[%clk 0:00:46]}  Nd5 {[%clk 0:00:05]} 36. Nxf7 {[%clk 0:00:36]}  Rcc8 {[%clk 0:00:05]} 37. c3 {[%clk 0:00:25]}  Rb8 {[%clk 0:00:04]} 38. Nh6+ {[%clk 0:00:24]}  Kh8 {[%clk 0:00:04]} 39. Rxf8+ {[%clk 0:00:25]}  Rxf8 {[%clk 0:00:05]} 40. Nf7+ {[%clk 0:00:26]}  Kg8 {[%clk 0:00:05]} 41. Ng5 {[%clk 0:00:26]}  Rf5 {[%clk 0:00:05]} 42. Rd8+ {[%clk 0:00:24]}  Rf8 {[%clk 0:00:03]} 43. Rxf8+ {[%clk 0:00:21]}  Kxf8 {[%clk 0:00:04]} 44. Nxe6+ {[%clk 0:00:21]}  Ke7 {[%clk 0:00:05]} 45. Nf4 {[%clk 0:00:22]}  Nxf4 {[%clk 0:00:03]} 46. gxf4 {[%clk 0:00:23]}  Ke6 {[%clk 0:00:03]} 47. b4 {[%clk 0:00:22]} 1-0


[Site "https://www.chess.com"]

[Event "Titled Tuesday Blitz July 4 Late 2023"]
[White "Sousa, Andre Ventura"]
[Black "Dardha, Daniel"]
[WhiteFideId "1917617"]
[BlackFideId "240990"]
[WhiteElo "2578"]
[BlackElo "2873"]
[Result "0-1"]
[Round "7"]
[TimeControl "180+2"]
[Date "2023.07.04"]
[WhiteClock "0:00:14"]
[BlackClock "0:01:17"]
[Board "30"]

1. e4 {[%clk 0:03:00]}  d5 {[%clk 0:02:25]} 2. exd5 {[%clk 0:03:00]}  Qxd5 {[%clk 0:02:24]} 3. Nc3 {[%clk 0:03:00]}  Qd8 {[%clk 0:02:23]} 4. Bc4 {[%clk 0:03:00]}  c6 {[%clk 0:02:23]} 5. d4 {[%clk 0:03:00]}  Nf6 {[%clk 0:02:23]} 6. Nf3 {[%clk 0:02:59]}  Bf5 {[%clk 0:02:24]} 7. Ne5 {[%clk 0:02:54]}  e6 {[%clk 0:02:23]} 8. g4 {[%clk 0:02:51]}  Be4 {[%clk 0:02:24]} 9. Rg1 {[%clk 0:02:33]}  Bd5 {[%clk 0:02:22]} 10. Nxd5 {[%clk 0:02:32]}  cxd5 {[%clk 0:02:21]} 11. Bb5+ {[%clk 0:02:32]}  Nfd7 {[%clk 0:02:21]} 12. c3 {[%clk 0:02:21]}  Bd6 {[%clk 0:02:19]} 13. Nxd7 {[%clk 0:02:13]}  Nxd7 {[%clk 0:02:20]} 14. g5 {[%clk 0:02:07]}  a6 {[%clk 0:02:11]} 15. Bd3 {[%clk 0:02:04]}  e5 {[%clk 0:02:05]} 16. dxe5 {[%clk 0:01:57]}  Nxe5 {[%clk 0:02:06]} 17. Be3 {[%clk 0:01:48]}  O-O {[%clk 0:02:03]} 18. Qe2 {[%clk 0:01:38]}  Qa5 {[%clk 0:02:02]} 19. O-O-O {[%clk 0:01:23]}  Qxa2 {[%clk 0:01:57]} 20. Bb1 {[%clk 0:01:23]}  Qa5 {[%clk 0:01:56]} 21. Bd4 {[%clk 0:01:15]}  Rfe8 {[%clk 0:01:53]} 22. Qc2 {[%clk 0:01:12]}  g6 {[%clk 0:01:52]} 23. f4 {[%clk 0:00:58]}  Nf3 {[%clk 0:01:43]} 24. Qf2 {[%clk 0:00:46]}  Bxf4+ {[%clk 0:01:39]} 25. Kc2 {[%clk 0:00:44]}  Qa4+ {[%clk 0:01:30]} 26. b3 {[%clk 0:00:43]}  Qb5 {[%clk 0:01:29]} 27. Rd3 {[%clk 0:00:36]}  Nxg1 {[%clk 0:01:20]} 28. Qxf4 {[%clk 0:00:33]}  Ne2 {[%clk 0:01:20]} 29. Qf6 {[%clk 0:00:31]}  Nxd4+ {[%clk 0:01:20]} 30. Qxd4 {[%clk 0:00:29]}  Re2+ {[%clk 0:01:19]} 31. Rd2 {[%clk 0:00:25]}  Rxd2+ {[%clk 0:01:18]} 32. Qxd2 {[%clk 0:00:14]}  Re8 {[%clk 0:01:17]} 0-1


[Site "https://www.chess.com"]